bitfinex-derivatives/quotes_BTCF0:USTF0_20250602
["timestamp","ask_amount","ask_price","bid_price","bid_amount"]
[1748892818760,0.42851484,104300.0,104290.0,1.28256141]
[1748892818761,0.63871484,104300.0,104290.0,1.28256141]
[1748892818966,0.63871484,104300.0,104290.0,1.28276141]
[1748892819365,0.64853359,104300.0,104290.0,1.28272141]
[1748892819565,0.64853359,104300.0,104290.0,1.28752141]
[1748892819774,0.64853359,104300.0,104290.0,1.29172141]
[1748892819974,0.63871484,104300.0,104290.0,1.29172141]
[1748892820174,0.63871484,104300.0,104290.0,1.2772095]
[1748892821271,0.63871484,104300.0,104290.0,1.31840928]
[1748892821472,0.63871484,104300.0,104290.0,1.31440928]
[1748892821974,0.66891484,104300.0,104290.0,1.34624928]
[1748892822275,0.66891484,104300.0,104290.0,0.80180928]
[1748892822468,0.66891484,104300.0,104290.0,1.34620928]
[1748892822671,0.66891484,104300.0,104290.0,1.3010095]
[1748892822973,0.66891484,104300.0,104290.0,1.3461868]
[1748892823878,0.66891484,104300.0,104290.0,1.3782868]
[1748892826371,0.4621671,104300.0,104290.0,1.3782868]
[1748892826573,0.66891484,104300.0,104290.0,1.3782868]
[1748892828482,0.4018671,104300.0,104290.0,1.5699722]
[1748892828781,0.1916671,104300.0,104290.0,1.77671994]
[1748892828970,0.33555473,104310.0,104300.0,0.191667]
[1748892829284,0.33555473,104310.0,104300.0,1.22669204]
[1748892829475,0.33555473,104310.0,104300.0,1.0199443]
[1748892829780,0.33555473,104310.0,104300.0,1.02419384]
[1748892830084,0.34255473,104310.0,104300.0,1.02419384]
[1748892830585,0.34255473,104310.0,104300.0,1.06901044]
[1748892830884,0.35055473,104310.0,104300.0,1.0199443]
[1748892831377,0.34255473,104310.0,104300.0,1.0199443]
[1748892831577,0.33555473,104310.0,104300.0,1.0249443]
[1748892832381,0.33555473,104310.0,104300.0,1.0697609]
[1748892834384,0.33555473,104310.0,104300.0,1.06958846]
[1748892835888,0.33555473,104310.0,104300.0,1.23156788]
[1748892836282,0.33555473,104310.0,104300.0,1.67272788]
[1748892836788,0.33555473,104310.0,104300.0,1.70472788]
[1748892838286,0.33555473,104310.0,104300.0,1.65967474]
[1748892838486,0.33555473,104310.0,104300.0,1.70474639]
[1748892838882,0.33555473,104310.0,104300.0,1.26358639]
[1748892839090,0.33555473,104310.0,104300.0,1.60115865]
[1748892839288,0.42945473,104310.0,104300.0,1.60115865]
[1748892839784,0.63620247,104310.0,104300.0,1.60115865]
[1748892840390,0.42945473,104310.0,104300.0,1.60115865]
[1748892841893,0.42945473,104310.0,104300.0,1.64594574]
[1748892842085,0.39625473,104310.0,104300.0,1.64594574]
[1748892842481,0.36605473,104310.0,104300.0,1.64594574]
[1748892845088,0.43065473,104310.0,104300.0,1.64594574]
[1748892846193,0.43065473,104310.0,104300.0,1.64596852]
[1748892847580,0.43065473,104310.0,104300.0,1.556087]
[1748892847780,0.43065473,104310.0,104300.0,1.64596383]
[1748892849886,0.43065473,104310.0,104300.0,1.64596855]
[1748892850087,0.28763863,104310.0,104300.0,1.85271629]
[1748892851387,0.32073863,104310.0,104300.0,1.85271629]
[1748892852093,0.32073863,104310.0,104300.0,1.64596855]
[1748892852286,0.32073863,104310.0,104300.0,1.85271629]
[1748892852493,0.32073863,104310.0,104300.0,1.91247176]
[1748892853492,0.32073863,104310.0,104300.0,1.82259021]
[1748892853696,0.32073863,104310.0,104300.0,1.91248168]
[1748892857597,0.32073863,104310.0,104300.0,1.8677242]
[1748892857789,0.32073863,104310.0,104300.0,1.91257266]
[1748892858499,0.35163863,104310.0,104300.0,1.95740159]
[1748892859399,0.38223863,104310.0,104300.0,1.95740159]
[1748892861401,0.38223863,104310.0,104300.0,1.9574242]
[1748892862511,0.28763863,104310.0,104300.0,1.9574242]
[1748892863189,0.28763863,104310.0,104300.0,1.96167374]
[1748892864103,0.28763863,104310.0,104300.0,2.25287374]
[1748892864289,0.28763863,104310.0,104300.0,2.2486242]
[1748892864494,0.28763863,104310.0,104300.0,2.04187646]
[1748892864801,0.28763863,104310.0,104300.0,2.2486242]
[1748892865203,0.32023863,104310.0,104300.0,2.2486242]
[1748892868504,0.32023863,104310.0,104300.0,1.60075646]
[1748892869007,0.35323863,104310.0,104300.0,1.95240792]
[1748892869201,0.38593863,104310.0,104300.0,1.95260792]
[1748892869902,0.38593863,104310.0,104300.0,1.66140792]
[1748892870406,0.38593863,104310.0,104300.0,1.66128792]
[1748892872704,0.38593863,104310.0,104300.0,1.66140792]
[1748892873002,0.38593863,104310.0,104300.0,1.66141514]
[1748892875009,0.38593863,104310.0,104300.0,1.75109253]
[1748892876712,0.38593863,104310.0,104300.0,1.75194818]
[1748892876910,0.59268637,104310.0,104300.0,1.02466118]
[1748892877115,0.59268637,104310.0,104300.0,1.61254961]
[1748892877300,0.59268637,104310.0,104300.0,0.97988251]
[1748892877507,0.59268637,104310.0,104300.0,1.42112251]
[1748892877915,0.38593863,104310.0,104300.0,1.61278951]
[1748892878106,0.38593863,104310.0,104300.0,1.61258951]
[1748892878412,0.38593863,104310.0,104300.0,1.61278951]
[1748892880614,0.38593863,104310.0,104300.0,1.61278996]
[1748892881609,0.38593863,104310.0,104300.0,1.52186247]
[1748892881915,0.38593863,104310.0,104300.0,1.61277368]
[1748892882604,0.38593863,104310.0,104300.0,1.42110668]
[1748892882804,0.38593863,104310.0,104300.0,1.61277368]
[1748892883205,0.59318518,104310.0,104300.0,1.62835323]
[1748892883403,0.59318518,104310.0,104300.0,1.82002023]
[1748892883615,0.59318518,104310.0,104300.0,1.61277368]
[1748892883814,0.59318518,104310.0,104300.0,1.82002023]
[1748892884208,0.59318518,104310.0,104300.0,1.72910902]
[1748892884409,0.59318518,104310.0,104300.0,0.97985001]
[1748892884608,0.59318518,104310.0,104300.0,1.42097001]
[1748892885309,0.63318518,104310.0,104300.0,1.36121454]
[1748892886013,0.63318518,104310.0,104300.0,1.36101454]
[1748892886513,0.63318518,104310.0,104300.0,1.36121454]
[1748892886906,0.63318518,104310.0,104300.0,1.16121454]
[1748892887617,0.63318518,104310.0,104300.0,1.15621454]
[1748892887813,0.63318518,104310.0,104300.0,0.61189454]
[1748892888015,0.1916668,104300.0,104290.0,0.4661095]
[1748892888310,0.7078599,104300.0,104290.0,1.1277095]
[1748892889312,0.50068085,104300.0,104290.0,1.1277095]
[1748892889915,0.50068085,104300.0,104290.0,1.13195904]
[1748892892217,0.50068085,104300.0,104290.0,1.32364414]
[1748892892418,0.50068085,104300.0,104290.0,1.13195904]
[1748892893015,0.50068085,104300.0,104290.0,0.69055904]
[1748892893216,0.50068085,104300.0,104290.0,0.77904424]
[1748892893417,0.50068085,104300.0,104290.0,1.32348424]
[1748892893924,0.50068085,104300.0,104290.0,1.13179904]
[1748892894526,0.50068085,104300.0,104290.0,1.13479904]
[1748892895627,0.50068085,104300.0,104290.0,0.69355904]
[1748892895827,0.50068085,104300.0,104290.0,1.13471904]
[1748892900630,0.50068085,104300.0,104290.0,0.59035904]
[1748892900830,0.50068085,104300.0,104290.0,1.16545904]
[1748892901235,0.50068085,104300.0,104290.0,1.13475904]
[1748892903140,0.50068085,104300.0,104290.0,0.69355904]
[1748892903322,0.50068085,104300.0,104290.0,1.13555904]
[1748892904233,0.69068085,104300.0,104290.0,0.55467904]
[1748892904736,0.49280436,104300.0,104290.0,0.55447904]
[1748892904937,0.70011841,104300.0,104290.0,0.55467904]
[1748892905131,0.70011841,104300.0,104290.0,0.55367904]
[1748892905632,0.70011841,104300.0,104290.0,0.55167904]
[1748892906341,0.70011841,104300.0,104290.0,0.36735904]
[1748892906537,0.69068085,104300.0,104290.0,1.18098211]
[1748892906731,0.69068085,104300.0,104290.0,1.56358559]
[1748892907036,0.69068085,104300.0,104290.0,1.37290049]
[1748892907037,0.62898085,104300.0,104290.0,1.37290049]
[1748892907427,0.62898085,104300.0,104290.0,1.56458569]
[1748892907624,0.62898085,104300.0,104290.0,1.56358621]
[1748892908031,0.42898085,104300.0,104290.0,1.56358621]
[1748892908243,0.1916668,104300.0,104290.0,1.56358621]
[1748892910642,0.1916668,104300.0,104290.0,1.56359025]
[1748892911041,0.39898085,104300.0,104290.0,1.56359025]
[1748892911751,0.1916668,104300.0,104290.0,1.56359025]
[1748892913644,0.1916668,104300.0,104290.0,1.63680806]
[1748892914241,0.1916668,104300.0,104290.0,1.63683917]
[1748892915651,0.1916668,104300.0,104290.0,1.83076909]
[1748892916443,0.1916668,104300.0,104290.0,1.90393361]
[1748892917746,0.1916668,104300.0,104290.0,1.90391929]
[1748892917946,0.1916668,104300.0,104290.0,1.99354424]
[1748892918247,0.33555433,104310.0,104300.0,0.1916667]
[1748892918451,0.33555433,104310.0,104300.0,1.00413841]
[1748892919451,0.34255433,104310.0,104300.0,1.00413841]
[1748892919644,0.35055433,104310.0,104300.0,1.44629841]
[1748892920451,0.35055433,104310.0,104300.0,1.45054795]
[1748892921744,0.35055433,104310.0,104300.0,1.45051168]
[1748892922445,0.38325433,104310.0,104300.0,1.45051168]
[1748892923254,0.38325433,104310.0,104300.0,1.08149998]
[1748892923548,0.38325433,104310.0,104300.0,1.52353998]
[1748892925456,0.38325433,104310.0,104300.0,1.52352838]
[1748892925750,0.38325433,104310.0,104300.0,1.45038008]
[1748892927049,0.59056838,104310.0,104300.0,1.45038008]
[1748892930055,0.38325433,104310.0,104300.0,1.45038008]
[1748892930959,0.38325433,104310.0,104300.0,1.40515624]
[1748892931259,0.38325433,104310.0,104300.0,1.45038671]
[1748892931961,0.44685433,104310.0,104300.0,1.45038671]
[1748892932160,0.44685433,104310.0,104300.0,1.08958671]
[1748892932351,0.44685433,104310.0,104300.0,1.81118671]
[1748892933265,0.65416838,104310.0,104300.0,1.17749271]
[1748892933451,0.86148243,104310.0,104300.0,0.72029271]
[1748892933647,0.88148243,104310.0,104300.0,1.26288317]
[1748892933852,0.88148243,104310.0,104300.0,0.81996317]
[1748892934053,0.88148243,104310.0,104300.0,0.96284317]
[1748892934262,0.88148243,104310.0,104300.0,0.96304317]
[1748892934459,0.88148243,104310.0,104300.0,0.96284317]
[1748892934653,0.88148243,104310.0,104300.0,0.11836954]
[1748892934855,0.88148243,104310.0,104300.0,0.56120954]
[1748892935862,0.88148243,104310.0,104300.0,0.04972313]
[1748892936061,1.16148243,104310.0,104300.0,0.15364313]
[1748892936359,1.16148243,104310.0,104300.0,0.55112954]
[1748892936568,1.16148243,104310.0,104300.0,0.55104954]
[1748892936569,1.52228243,104310.0,104300.0,0.55104954]
[1748892937769,1.54228243,104310.0,104300.0,0.55104954]
[1748892938069,1.12765433,104310.0,104300.0,0.55104954]
[1748892938268,1.54228243,104310.0,104300.0,0.55104954]
[1748892939868,1.12765433,104310.0,104300.0,0.55104954]
[1748892940072,1.54228243,104310.0,104300.0,0.55104954]
[1748892940770,1.78228243,104310.0,104300.0,0.55104954]
[1748892941061,1.00685433,104310.0,104300.0,0.55104954]
[1748892941269,0.95416838,104310.0,104300.0,0.57104954]
[1748892942166,0.95416838,104310.0,104300.0,0.97712727]
[1748892942562,0.95416838,104310.0,104300.0,0.93184954]
[1748892944163,0.95416838,104310.0,104300.0,0.57104954]
[1748892944371,0.95416838,104310.0,104300.0,0.93184954]
[1748892945064,0.74685433,104310.0,104300.0,0.93184954]
[1748892945268,0.95416838,104310.0,104300.0,0.93184954]
[1748892945772,0.74685433,104310.0,104300.0,0.57691634]
[1748892945961,0.76416838,104310.0,104300.0,1.16946861]
[1748892946161,0.76416838,104310.0,104300.0,1.61546861]
[1748892946362,0.55685433,104310.0,104300.0,1.61546861]
[1748892946655,0.76416838,104310.0,104300.0,1.61546861]
[1748892947261,0.76416838,104310.0,104300.0,1.06818861]
[1748892947457,0.76416838,104310.0,104300.0,1.61542861]
[1748892948371,0.76416838,104310.0,104300.0,1.68856793]
[1748892948867,0.76416838,104310.0,104300.0,1.49690113]
[1748892949179,0.76416838,104310.0,104300.0,1.68856793]
[1748892951161,0.76416838,104310.0,104300.0,1.61541963]
[1748892951563,0.76416838,104310.0,104300.0,1.57015634]
[1748892951863,0.76416838,104310.0,104300.0,1.61542775]
[1748892952058,0.76416838,104310.0,104300.0,1.61542777]
[1748892954878,0.75716838,104310.0,104300.0,1.61542777]
[1748892955073,0.74916838,104310.0,104300.0,1.61542777]
[1748892955275,0.54185433,104310.0,104300.0,1.61542777]
[1748892955469,0.74916838,104310.0,104300.0,1.61542777]
[1748892956577,0.74916838,104310.0,104300.0,1.61642777]
[1748892956976,0.74916838,104310.0,104300.0,1.17314777]
[1748892957276,0.74916838,104310.0,104300.0,1.61614777]
[1748892957679,0.74916838,104310.0,104300.0,1.61814777]
[1748892958377,0.74916838,104310.0,104300.0,1.66298365]
[1748892959073,0.47825433,104310.0,104300.0,1.66298365]
[1748892959275,0.36825433,104310.0,104300.0,1.66298365]
[1748892961281,0.36825433,104310.0,104300.0,1.73613195]
[1748892963677,0.36825433,104310.0,104300.0,1.73614908]
[1748892967184,0.36825433,104310.0,104300.0,1.73594908]
[1748892968476,0.39905433,104310.0,104300.0,1.73594908]
[1748892968678,0.39905433,104310.0,104300.0,1.73506908]
[1748892969180,0.43105433,104310.0,104300.0,1.74585535]
[1748892969383,0.43105433,104310.0,104300.0,1.73506908]
[1748892969885,0.63836838,104310.0,104300.0,1.73506908]
[1748892970187,0.63836838,104310.0,104300.0,1.74585527]
[1748892970394,0.63836838,104310.0,104300.0,1.73506908]
[1748892970681,0.63836838,104310.0,104300.0,1.74585537]
[1748892970883,0.63836838,104310.0,104300.0,1.73506908]
[1748892971483,0.63836838,104310.0,104300.0,1.7351206]
[1748892971878,0.63836838,104310.0,104300.0,1.79490164]
[1748892972190,0.63836838,104310.0,104300.0,1.7351206]
[1748892972389,0.63836838,104310.0,104300.0,1.79490164]
[1748892972888,0.63836838,104310.0,104300.0,1.805688]
[1748892973091,0.63836838,104310.0,104300.0,1.79490164]
[1748892973486,0.63836838,104310.0,104300.0,2.15570164]
[1748892973880,0.43105433,104310.0,104300.0,2.15570164]
[1748892974078,0.43105433,104310.0,104300.0,2.166488]
[1748892974285,0.32033823,104310.0,104300.0,2.36301569]
[1748892974487,0.32033823,104310.0,104300.0,2.28986739]
[1748892975285,0.32033823,104310.0,104300.0,2.30068466]
[1748892975493,0.32033823,104310.0,104300.0,2.30068417]
[1748892975792,0.28763823,104310.0,104300.0,2.36316561]
[1748892976092,0.28763823,104310.0,104300.0,2.30068352]
[1748892976284,0.3191622,104320.0,104310.0,0.1916484]
[1748892976488,0.2712529,104320.0,104310.0,1.34320888]
[1748892976786,0.2395529,104320.0,104310.0,1.36384321]
[1748892976993,0.2395529,104320.0,104310.0,1.37462578]
[1748892977285,0.2395529,104320.0,104310.0,1.43705124]
[1748892977491,0.36718613,104330.0,104320.0,0.19163]
[1748892977679,0.36718613,104330.0,104320.0,1.8061636]
[1748892977881,0.36718613,104330.0,104320.0,1.64416256]
[1748892978186,0.36718613,104330.0,104320.0,2.55024256]
[1748892978586,0.36718613,104330.0,104320.0,2.56147609]
[1748892978994,0.63800018,104330.0,104320.0,2.55022951]
[1748892979592,0.63800018,104330.0,104320.0,2.55002951]
[1748892979791,0.63800018,104330.0,104320.0,2.55102951]
[1748892979993,0.63800018,104330.0,104320.0,2.56084099]
[1748892980791,0.63800018,104330.0,104320.0,2.56284099]
[1748892981388,0.63800018,104330.0,104320.0,2.51784266]
[1748892985599,0.63800018,104330.0,104320.0,2.87864266]
[1748892986099,0.63800018,104330.0,104320.0,2.92348099]
[1748892986508,0.63800018,104330.0,104320.0,2.83330148]
[1748892986712,0.63800018,104330.0,104320.0,2.92342377]
[1748892987104,0.63800018,104330.0,104320.0,2.9346573]
[1748892987504,0.63800018,104330.0,104320.0,2.92342377]
[1748892988106,0.63800018,104330.0,104320.0,2.9346573]
[1748892988414,0.63800018,104330.0,104320.0,2.87862134]
[1748892989214,0.63800018,104330.0,104320.0,2.88985487]
[1748892989915,0.63800018,104330.0,104320.0,2.87862134]
[1748892990507,0.63800018,104330.0,104320.0,2.88985312]
[1748892990703,0.63800018,104330.0,104320.0,2.87861959]
[1748892991208,0.63800018,104330.0,104320.0,2.88985312]
[1748892991415,0.63800018,104330.0,104320.0,2.87861959]
[1748892991613,0.63800018,104330.0,104320.0,2.96305574]
[1748892992417,0.63800018,104330.0,104320.0,2.96249574]
[1748892993914,0.63800018,104330.0,104320.0,2.97372927]
[1748892994411,0.43068613,104330.0,104320.0,2.96249242]
[1748892994713,0.63800018,104330.0,104320.0,2.93408729]
[1748892996016,0.63800018,104330.0,104320.0,2.93833683]
[1748892996217,0.63800018,104330.0,104320.0,2.94957126]
[1748892996416,0.63800018,104330.0,104320.0,2.93833683]
[1748892997415,0.63800018,104330.0,104320.0,2.39301683]
[1748892997714,0.63800018,104330.0,104320.0,2.93757683]
[1748892998218,0.63800018,104330.0,104320.0,2.93760701]
[1748892999017,0.63800018,104330.0,104320.0,2.94884131]
[1748892999218,0.6378437,104330.0,104320.0,2.94884131]
[1748892999513,0.6378437,104330.0,104320.0,2.93760701]
[1748892999911,0.6378437,104330.0,104320.0,2.30469701]
[1748893000121,0.6378437,104330.0,104320.0,2.19978553]
[1748893000417,0.6478437,104330.0,104320.0,2.83281553]
[1748893000620,0.6478437,104330.0,104320.0,2.79903588]
[1748893000823,0.6478437,104330.0,104320.0,2.79903581]
[1748893001327,0.6478437,104330.0,104320.0,2.84384834]
[1748893002023,0.6478437,104330.0,104320.0,2.85488178]
[1748893002214,0.6478437,104330.0,104320.0,2.84384834]
[1748893002415,0.6478437,104330.0,104320.0,1.93776834]
[1748893002621,0.6478437,104330.0,104320.0,1.94880418]
[1748893002818,0.6478437,104330.0,104320.0,1.93776834]
[1748893003419,0.6478437,104330.0,104320.0,1.96615843]
[1748893003814,0.6478437,104330.0,104320.0,1.97719548]
[1748893004020,0.6478437,104330.0,104320.0,1.96615843]
[1748893004930,0.44068613,104330.0,104320.0,1.96615843]
[1748893005132,0.6478437,104330.0,104320.0,1.96615843]
[1748893005314,0.6478437,104330.0,104320.0,1.99755843]
[1748893005620,0.6478437,104330.0,104320.0,1.9522285]
[1748893005815,0.6478437,104330.0,104320.0,2.04366207]
[1748893008029,0.44068613,104330.0,104320.0,2.04366207]
[1748893008330,0.6478437,104330.0,104320.0,2.04366207]
[1748893009331,0.6478437,104330.0,104320.0,2.07516207]
[1748893009530,0.6478437,104330.0,104320.0,2.10726413]
[1748893013334,0.6478437,104330.0,104320.0,2.10726397]
[1748893015529,0.6478437,104330.0,104320.0,2.03406135]
[1748893015937,0.6478437,104330.0,104320.0,2.10735241]
[1748893017532,0.6478437,104330.0,104320.0,2.31450998]
[1748893017734,0.28758003,104330.0,104320.0,2.50815753]
[1748893017926,0.28758003,104330.0,104320.0,2.30099996]
[1748893018234,0.28758003,104330.0,104320.0,2.25609027]
[1748893018435,0.4947376,104330.0,104320.0,2.25609027]
[1748893019232,0.4947376,104330.0,104320.0,2.3009731]
[1748893019430,0.4947376,104330.0,104320.0,2.09381553]
[1748893019634,0.4947376,104330.0,104320.0,2.3009731]
[1748893020243,0.28758003,104330.0,104320.0,2.37422191]
[1748893020431,0.4947376,104330.0,104320.0,2.37422191]
[1748893020939,0.4947376,104330.0,104320.0,1.62238434]
[1748893021237,0.58955304,104330.0,104320.0,2.16678197]
[1748893021432,0.58955304,104330.0,104320.0,2.16698197]
[1748893021631,0.58955304,104330.0,104320.0,2.01573469]
[1748893024033,0.58955304,104330.0,104320.0,2.10721099]
[1748893025136,0.38238003,104330.0,104320.0,2.10721099]
[1748893025337,0.58955304,104330.0,104320.0,2.10721099]
[1748893026545,0.38238003,104330.0,104320.0,2.10721099]
[1748893026736,0.35128003,104330.0,104320.0,2.10721099]
[1748893028134,0.58995304,104330.0,104320.0,2.10721099]
[1748893028438,0.58995304,104330.0,104320.0,2.10745099]
[1748893028837,0.58995304,104330.0,104320.0,1.56257099]
[1748893029142,0.58995304,104330.0,104320.0,2.10741099]
[1748893030933,0.38278003,104330.0,104320.0,2.10741099]
[1748893031238,0.58995304,104330.0,104320.0,2.10741099]
[1748893031543,0.58995304,104330.0,104320.0,1.67336218]
[1748893033043,0.38278003,104330.0,104320.0,1.67336218]
[1748893035746,0.38278003,104330.0,104320.0,1.48173218]
[1748893036044,0.58995304,104330.0,104320.0,1.48173218]
[1748893036241,0.58995304,104330.0,104320.0,1.67336208]
[1748893036435,0.58995304,104330.0,104320.0,1.67308208]
[1748893036836,0.58995304,104330.0,104320.0,1.48145218]
[1748893037037,0.58995304,104330.0,104320.0,1.67308208]
[1748893038438,0.58995304,104330.0,104320.0,1.48145218]
[1748893039445,0.38278003,104330.0,104320.0,0.93689218]
[1748893039648,0.58995304,104330.0,104320.0,1.48145218]
[1748893041244,0.38278003,104330.0,104320.0,1.48145218]
[1748893041448,0.58994332,104330.0,104320.0,1.55470099]
[1748893044939,0.58994332,104330.0,104320.0,0.97864099]
[1748893045143,0.88710661,104330.0,104320.0,1.38635218]
[1748893045546,0.88710661,104330.0,104320.0,1.38655218]
[1748893046052,0.88710661,104330.0,104320.0,1.20044099]
[1748893046352,0.88710661,104330.0,104320.0,1.12719218]
[1748893046649,0.88710661,104330.0,104320.0,1.12699218]
[1748893046852,0.88710661,104330.0,104320.0,1.12719218]
[1748893047145,0.67998896,104330.0,104320.0,1.12719218]
[1748893048352,0.67998896,104330.0,104320.0,0.76639218]
[1748893053553,0.47278003,104330.0,104320.0,0.79729218]
[1748893053743,0.67998896,104330.0,104320.0,0.79729218]
[1748893054754,0.67998896,104330.0,104320.0,0.86069218]
[1748893057754,0.67998896,104330.0,104320.0,0.86029218]
[1748893058357,0.67998896,104330.0,104320.0,1.22109218]
[1748893058560,0.61778896,104330.0,104320.0,1.31272218]
[1748893058862,0.61778896,104330.0,104320.0,1.67272218]
[1748893059351,0.41058003,104330.0,104320.0,1.67272218]
[1748893059553,0.61778896,104330.0,104320.0,1.67272218]
[1748893060359,0.28758003,104330.0,104320.0,1.87993111]
[1748893061659,0.28758003,104330.0,104320.0,1.88293111]
[1748893062457,0.28758003,104330.0,104320.0,1.88493111]
[1748893062662,0.28758003,104330.0,104320.0,1.95813986]
[1748893065959,0.28758003,104330.0,104320.0,1.75093093]
[1748893066558,0.28758003,104330.0,104320.0,1.67772218]
[1748893071169,0.49467297,104330.0,104320.0,1.88481512]
[1748893072772,0.49467297,104330.0,104320.0,1.95802387]
[1748893073075,0.28758003,104330.0,104320.0,1.95802387]
[1748893073770,0.28758003,104330.0,104320.0,2.16511681]
[1748893074774,0.23967423,104330.0,104320.0,2.45631681]
[1748893076574,0.23967423,104330.0,104320.0,2.38310806]
[1748893077372,0.23967423,104330.0,104320.0,2.38290806]
[1748893079067,0.23967423,104330.0,104320.0,2.38262806]
[1748893079775,0.44676717,104330.0,104320.0,1.42392218]
[1748893079969,0.44676717,104330.0,104320.0,1.95765155]
[1748893080266,0.47956717,104330.0,104320.0,1.95765155]
[1748893081073,0.47956717,104330.0,104320.0,1.59685155]
[1748893081377,0.47956717,104330.0,104320.0,2.31420201]
[1748893082381,0.47956717,104330.0,104320.0,2.31845155]
[1748893083179,0.47956717,104330.0,104320.0,2.24533512]
[1748893083477,0.51206717,104330.0,104320.0,2.24533512]
[1748893083677,0.51206717,104330.0,104320.0,1.52373512]
[1748893083883,0.51206717,104330.0,104320.0,2.24533512]
[1748893084681,0.51206717,104330.0,104320.0,2.31848555]
[1748893085074,0.54466717,104330.0,104320.0,2.31848555]
[1748893086484,0.54466717,104330.0,104320.0,2.24533512]
[1748893087183,0.54466717,104330.0,104320.0,1.70061512]
[1748893087478,0.54466717,104330.0,104320.0,2.24509512]
[1748893089578,0.54466717,104330.0,104320.0,3.15097512]
[1748893095494,0.54466717,104330.0,104320.0,2.94384218]
[1748893095791,0.54466717,104330.0,104320.0,3.15093512]
[1748893097991,0.54466717,104330.0,104320.0,3.22421763]
[1748893098988,0.54466717,104330.0,104320.0,1.63828469]
[1748893099186,0.75176011,104330.0,104320.0,1.31107218]
[1748893099488,0.54466717,104330.0,104320.0,1.39942218]
[1748893099785,0.54466717,104330.0,104320.0,1.75223218]
[1748893100376,0.54466717,104330.0,104320.0,1.74923218]
[1748893100591,0.54466717,104330.0,104320.0,1.74623218]
[1748893100891,0.54466717,104330.0,104320.0,1.30507218]
[1748893101193,0.54466717,104330.0,104320.0,1.74623218]
[1748893101394,0.54466717,104330.0,104320.0,1.38543218]
[1748893102288,0.54466717,104330.0,104320.0,0.84099218]
[1748893102789,0.54466717,104330.0,104320.0,1.78415522]
[1748893102985,0.54466717,104330.0,104320.0,1.68087522]
[1748893103295,0.54466717,104330.0,104320.0,1.81455522]
[1748893107996,0.54466717,104330.0,104320.0,1.88783773]
[1748893108794,0.54466717,104330.0,104320.0,1.52703773]
[1748893109099,0.54466717,104330.0,104320.0,2.24863773]
[1748893110501,0.54466717,104330.0,104320.0,1.70419773]
[1748893110694,0.54466717,104330.0,104320.0,2.24863773]
[1748893111299,0.54466717,104330.0,104320.0,2.04154479]
[1748893111698,0.54466717,104330.0,104320.0,1.96826228]
[1748893112500,0.54466717,104330.0,104320.0,2.17535522]
[1748893113400,0.54466717,104330.0,104320.0,1.96826228]
[1748893113792,0.75176011,104330.0,104320.0,1.27502667]
[1748893114098,0.75176011,104330.0,104320.0,1.81926667]
[1748893114302,0.56466717,104330.0,104320.0,1.09786667]
[1748893114795,0.77176011,104330.0,104320.0,0.48019218]
[1748893114996,0.95176011,104330.0,104320.0,0.22343218]
[1748893115201,1.21176011,104330.0,104320.0,0.66439218]
[1748893115403,1.21176011,104330.0,104320.0,0.66459218]
[1748893117306,1.00480775,104330.0,104320.0,0.66459218]
[1748893117603,1.00480775,104330.0,104320.0,0.12019218]
[1748893117897,1.00480775,104330.0,104320.0,0.66459218]
[1748893118808,1.00480775,104330.0,104320.0,0.65335865]
[1748893119605,1.00480775,104330.0,104320.0,0.21219865]
[1748893119907,1.00480775,104330.0,104320.0,0.65335865]
[1748893120101,1.00480775,104330.0,104320.0,0.64910911]
[1748893129017,1.00580775,104330.0,104320.0,0.6370763]
[1748893130014,1.00580775,104330.0,104320.0,0.6360763]
[1748893130610,1.00580775,104330.0,104320.0,0.0916763]
[1748893130812,1.00580775,104330.0,104320.0,0.6360763]
[1748893131305,1.00580775,104330.0,104320.0,0.64032584]
[1748893132413,1.00580775,104330.0,104320.0,0.6360763]
[1748893132815,1.00580775,104330.0,104320.0,0.0916763]
[1748893133007,1.00580775,104330.0,104320.0,0.6360763]
[1748893133611,0.79857423,104330.0,104320.0,0.0916763]
[1748893133905,1.00580775,104330.0,104320.0,0.6360763]
[1748893134106,1.00580775,104330.0,104320.0,0.6669763]
[1748893135313,1.00580775,104330.0,104320.0,0.67122584]
[1748893136221,1.00580775,104330.0,104320.0,1.03202584]
[1748893136413,1.00580775,104330.0,104320.0,1.09482584]
[1748893137104,0.58857423,104330.0,104320.0,1.09482584]
[1748893137310,0.79570361,104330.0,104320.0,1.30195522]
[1748893137514,0.74570361,104330.0,104320.0,1.30195522]
[1748893137716,0.74570361,104330.0,104320.0,0.75755522]
[1748893137916,0.74570361,104330.0,104320.0,1.30195522]
[1748893139413,0.53857423,104330.0,104320.0,1.09482584]
[1748893139922,0.74570757,104330.0,104320.0,1.09482584]
[1748893140102,0.74570757,104330.0,104320.0,0.55042584]
[1748893140512,0.74570757,104330.0,104320.0,1.09482584]
[1748893140914,0.53857423,104330.0,104320.0,1.09482584]
[1748893143413,0.53857423,104330.0,104320.0,0.65366584]
[1748893143619,0.53857423,104330.0,104320.0,0.55042584]
[1748893144029,0.53857423,104330.0,104320.0,1.09478584]
[1748893144419,0.53857423,104330.0,104320.0,1.09474584]
[1748893144919,0.53857423,104330.0,104320.0,1.10474584]
[1748893147412,0.53857423,104330.0,104320.0,1.10454584]
[1748893147611,0.74570757,104330.0,104320.0,1.10454584]
[1748893149605,0.74570757,104330.0,104320.0,0.5559763]
[1748893149818,0.74570757,104330.0,104320.0,1.1002963]
[1748893150618,0.74570757,104330.0,104320.0,1.10454584]
[1748893150917,0.74570757,104330.0,104320.0,0.56022584]
[1748893151319,0.74570757,104330.0,104320.0,1.10454584]
[1748893151710,0.74570757,104330.0,104320.0,1.1002963]
[1748893152710,0.74570757,104330.0,104320.0,0.74374584]
[1748893152910,0.74570757,104330.0,104320.0,1.17778033]
[1748893153820,0.74570757,104330.0,104320.0,1.08205449]
[1748893155122,0.74570757,104330.0,104320.0,0.4645]
[1748893155318,0.74570757,104330.0,104320.0,1.00878]
[1748893156723,0.74570757,104330.0,104320.0,1.01302954]
[1748893156917,0.74570757,104330.0,104320.0,0.46874954]
[1748893157118,0.74570757,104330.0,104320.0,1.01302954]
[1748893158123,0.74570757,104330.0,104320.0,1.28302954]
[1748893158814,0.74570757,104330.0,104320.0,1.27878]
[1748893160224,0.74570757,104330.0,104320.0,0.7345]
[1748893160426,0.74570757,104330.0,104320.0,1.27878]
[1748893161230,0.74573302,104330.0,104320.0,1.27878]
[1748893161721,0.74573302,104330.0,104320.0,1.28302954]
[1748893162125,0.35286169,104340.0,104320.0,1.28302954]
[1748893162126,0.1935994,104340.0,104330.0,0.1916114]
[1748893162427,0.1935994,104340.0,104330.0,1.22610468]
[1748893162628,0.1935994,104340.0,104330.0,1.22615774]
[1748893162828,0.40075819,104340.0,104330.0,1.22615774]
[1748893163331,0.40075819,104340.0,104330.0,1.22815774]
[1748893164532,0.40075819,104340.0,104330.0,1.02099895]
[1748893164722,0.40075819,104340.0,104330.0,1.23115774]
[1748893164925,0.43305819,104340.0,104330.0,1.23115774]
[1748893165218,0.2258994,104340.0,104330.0,1.02399895]
[1748893166624,0.2258994,104340.0,104330.0,0.9507114]
[1748893167032,0.43299455,104340.0,104330.0,1.3033]
[1748893167327,0.49669455,104340.0,104330.0,1.3035]